Cogmind - Beta 16 @@@ ROGUE MODE // 2025.11.11 @ 11:29:52 Player: szymekc Result: Destroyed by AU-8XM(R) with Subdweller Laser Performance ------------- Evolutions (0) 0 Regions Visited (2) 400 Robots Destroyed (30) 150 Value Destroyed (908) 908 Prototype IDs (0) 0 Alien Tech Used (0) 0 Bonus (0) 0 TOTAL SCORE: 1458 Bonus ------- None Cogmind --------- Core Integrity 0/250 Matter 279/300 Energy 100/100 System Corruption 0% Temperature Cool (18) Movement Rolling (110) Location -10/Subcaves Parts ------- > --- POWER (1) -------- (None) > --- PROPULSION (2) --- Subdweller Monowheel > --- UTILITY (2) ------ (None) > --- WEAPON (2) ------- Subdweller Machine Gun Subdweller Machine Gun > --- INVENTORY (5) ---- Subdweller Power Source Subdweller Power Source Spiked Treads Subdweller Machine Gun Datajack Peak State ------------ > --- POWER ------------ Ion Engine > --- PROPULSION ------- Compact Wheel Subdweller Monowheel > --- UTILITY ---------- High-capacity Storage Unit Seismic Detector > --- WEAPON ----------- Subdweller Machine Gun Subdweller Machine Gun > --- INVENTORY -------- Ion Engine Subdweller Power Source Subdweller Power Source Subdweller Power Source Subdweller Power Source Subdweller Monowheel Large Matter Pod Subdweller Optics Cobbler Unit Subdweller Laser Subdweller Machine Gun Barrage Gun Grenade Launcher Grenade Launcher Subdweller Shrapnel Launcher Datajack Mining Laser Multitool [Rating: 13] Favorites ----------- Power Ion Engine Engine Ion Engine Propulsion Light Treads Treads Light Treads Wheel Compact Wheel Utility High-capacity Storage Unit Device Seismic Detector Storage High-capacity Storage Unit Protection Light Armor Plating Weapon Subdweller Machine Gun Energy Gun Subdweller Laser Ballistic Gun Subdweller Machine Gun Launcher Grenade Launcher Special Weapon Mining Laser Build | -11 -10 -10 ------- Run | Yrd Mat Sub Slots Evolved . | . . . Power . | . . . Propulsion . | . . . Utility . | . . . Weapon . | . . . Parts Attached 30 | 6 4 20 Power 2 | 1 . 1 Engine 2 | 1 . 1 Core . | . . . Reactor . | . . . Propulsion 9 | 2 . 7 Treads 5 | 2 . 3 Leg . | . . . Wheel 4 | . . 4 Hover . | . . . Flight . | . . . Utility 6 | 1 2 3 Device 2 | 1 . 1 Storage 1 | . 1 . Processor . | . . . Hackware . | . . . Protection 3 | . 1 2 Artifact . | . . . Weapon 13 | 2 2 9 Energy Gun 2 | 1 . 1 Energy Cannon . | . . . Ballistic Gun 9 | 1 1 7 Ballistic Cannon . | . . . Launcher 1 | . 1 . Special Weapon 1 | . . 1 Impact Weapon . | . . . Slashing Weapon . | . . . Piercing Weapon . | . . . Special Melee Weapon . | . . . Unidentified Prototypes . | . . . Parts Lost 13 | . . 13 Power 2 | . . 2 Propulsion 3 | . . 3 Utility 5 | . . 5 Weapon 3 | . . 3 Highest Loss Streak 4 | . . 4 To Critical Strikes . | . . . Average Backups 15 | 1 8 18 Power 3 | . 2 3 Propulsion 2 | . . 2 Utility 2 | . 2 2 Weapon 5 | . 3 6 Tool/Special . | . . . Unused Backups 21 | . 1 20 Power 6 | . . 6 Propulsion 2 | . . 2 Utility 4 | . . 4 Weapon 7 | . 1 6 Tool/Special 2 | . . 2 Average Slot Usage (%) 98 | . 99 97 Engine 13 | . 14 13 Treads 19 | . 28 16 Wheel 8 | . . 11 Device 6 | . 2 7 Storage 13 | . 11 13 Protection 6 | . 13 4 Energy Gun 1 | . . 1 Ballistic Gun 24 | . 27 23 Special Weapon 1 | . . 2 Peak Build Rating 13 | 6 8 13 Average Rating 10 | 4 7 11 On Entrance 4 | . 6 8 Avg Prop Armor Cover (%) 14 | . . 14 Naked Turns . | . . . Heaviest Build 56 | 9 52 56 Greatest Support 40 | 40 40 40 Greatest Overweight (x) 3 | . 1 3 Average Overweight (x) 1 | . . 1 Largest Inventory Capacity 20 | 5 20 20 Average Capacity 18 | 5 16 19 Most Carried 20 | 2 13 20 Average Carried 16 | 1 8 18 Final Capacity 20 | 5 20 5 Final Carried 13 | 2 13 5 Class Distribution -------------------- 98% | Mutant Dominant Class ---------------- Mutant | -10/Materials Mutant | -10/Subcaves Resources | -11 -10 -10 ----------- Run | Yrd Mat Sub Matter Collected 1106 | 268 210 628 Remotely . | . . . Salvage Created 947 | 50 357 540 Parts 68 | 6 16 46 Haulers Intercepted 2 | . 2 . Recyclers Shooed 4 | 2 2 . Parts Field Recycled . | . . . Retrieved Matter . | . . . Parts Self-Destructed 14 | . . 14 Prevented . | . . . Parts Restored . | . . . Kills | -11 -10 -10 ------- Run | Yrd Mat Sub Combat Hostiles Destroyed 24 | . 6 18 Guns 20 | . 6 14 AOE 4 | . . 4 Classes Destroyed 6 | 1 2 3 Tunneler 2 | 2 . . Hauler 2 | . 2 . Turret 2 | . . 2 Swarmer 4 | . . 4 Grunt 6 | . 6 . Subdweller 14 | . . 14 Best Kill Streak 4 | 1 3 4 Combat Bots Only 4 | . 2 4 Max Kills in Single Turn 2 | 1 1 2 Gunslinging . | . . . Exploded 2 | . . 2 Melee . | . . . Uniques/NPCs Destroyed . | . . . Combat | -11 -10 -10 -------- Run | Yrd Mat Sub Hostile Shots Fired 145 | . 21 124 Missed 42 | . 10 32 Hits 103 | . 11 92 Projectile 103 | . 11 92 Critical Strikes 4 | . . 4 Damage Taken 1916 | . 137 1779 Core 265 | . 28 237 Absorbed by Shields . | . . . Core Remaining (%) 100 | 100 . . Volleys Fired 116 | 8 28 80 Largest 2 | 2 2 2 Hottest 100 | 60 40 100 Shots Fired 205 | 16 55 134 Gun 181 | 16 54 111 Cannon . | . . . Launcher 10 | . 1 9 Special 14 | . . 14 Kinetic 166 | 8 54 104 Thermal 21 | . . 21 Explosive 10 | . 1 9 Electromagnetic 8 | 8 . . Robot Hit Streak 34 | 6 11 34 Robot Miss Streak 3 | 3 3 2 Penetration Max . | . . . Secondary Targets 2 | . 1 1 Max Gunslinging Chain 1 | . 1 1 Shots Hit Robots 142 | 12 41 89 Core Hits 71 | 3 22 46 Critical Kills 1 | . 1 . Critical Parts Destroyed . | . . . Critical Strikes 2 | 1 1 . Destroy 1 | . 1 . Corrupt 1 | 1 . . Melee Attacks . | . . . Impact . | . . . Slashing . | . . . Piercing . | . . . Sneak Attacks . | . . . Combat Hostiles . | . . . Follow-up Attacks . | . . . Damage Inflicted 2272 | 125 336 1811 Guns 1955 | 125 334 1496 Cannons . | . . . Explosions 315 | . . 315 Melee . | . . . Ramming 2 | . 2 . Kinetic 1772 | 47 334 1391 Thermal 105 | . . 105 Explosive 315 | . . 315 Electromagnetic 78 | 78 . . Impact . | . . . Slashing . | . . . Piercing . | . . . Highest Corruption . | . . . Average Corruption . | . . . Corruption Purged . | . . . Corruption Blocked . | . . . Overload Shots . | . . . Overflow Damage . | . . . Projectiles . | . . . Explosions . | . . . Melee . | . . . Knockbacks . | . . . Impact . | . . . Kinetic . | . . . Secondary . | . . . Self-Inflicted Damage . | . . . Shots . | . . . Rammed 3 | 1 2 . Targets Rammed 3 | 1 2 . Kicked . | . . . Crushed . | . . . Highest Temperature 30 | 20 30 . Average Temperature 10 | 15 9 . Received Heat Transfer 414 | . 78 336 Siege Activations . | . . . Martial Activations . | . . . Shielding Activations . | . . . Robots Disrupted . | . . . Combat Hostiles . | . . . Robots Corrupted . | . . . Combat Hostiles . | . . . Parts Fried . | . . . Impact Corruptions . | . . . Robots Melted . | . . . Combat Hostiles . | . . . Parts Melted . | . . . Heat Transferred 125 | . . 125 Parts Sabotaged . | . . . Parts Stolen . | . . . Parts Stripped . | . . . Power Chain Reactions . | . . . Alert | -11 -10 -10 ------- Run | Yrd Mat Sub Maximum Alert Level . | . . . Low Security (%) 100 | 100 100 . Level 1 . | . . . Level 2 . | . . . Level 3 . | . . . Level 4 . | . . . Level 5 . | . . . High Security . | . . . Max Security . | . . . Peak Influence 50 | 5 50 . Initial . | . . . Average 8 | 1 9 . Influence Increases 451 | 10 231 210 Destroy 0b10 Robot/C 240 | . 120 120 Destroy 0b10 Robot/NC 20 | 10 10 . Destroy Leader 34 | . 34 . Successful Hack 13 | . 13 . Select Force Hacks 30 | . 30 . Destroy Structure 9 | . 9 . Lose Combat Pursuer 105 | . 15 90 Influence Decreases 451 | 10 231 210 Time Decay 447 | 10 231 206 Lost Part 4 | . . 4 Squads Dispatched 3 | . 3 . Investigation 1 | . 1 . Extermination . | . . . Reinforcement 2 | . 2 . Assault . | . . . Garrison . | . . . Intercept . | . . . Searches Triggered . | . . . Construction Impeded . | . . . Haulers Reinforced . | . . . Active Scanning Responses . | . . . Cargo Convoy Interrupts . | . . . Stealth | -11 -10 -10 --------- Run | Yrd Mat Sub Distress Signals 2 | . 2 . Communications Jammed . | . . . Distress Signals . | . . . Times Spotted 37 | . 14 23 Peak Tracking Total 4 | . 4 4 Tactical Retreats 2 | . 1 1 Traps | -11 -10 -10 ------- Run | Yrd Mat Sub Traps Triggered 3 | . 1 2 Indirectly . | . . . Trap Hack Attempts . | . . . Triggered . | . . . Disarmed . | . . . Reprogrammed . | . . . Reused . | . . . Traps Extracted . | . . . Installed . | . . . Triggered . | . . . Machines | -11 -10 -10 ---------- Run | Yrd Mat Sub Machines Disabled 4 | . . 4 Max in Single Turn 2 | . . 2 Machines Repaired . | . . . Machines Dismantled . | . . . Machines Sabotaged . | . . . Overloaded Fab Kills . | . . . Hacking | -11 -10 -10 --------- Run | Yrd Mat Sub Machines Accessed 8 | . 7 1 Terminals 6 | . 6 . Fabricators . | . . . Repair Stations . | . . . Recycling Units 1 | . 1 . Scanalyzers . | . . . Garrison Access . | . . . Total Hacks 24 | . 19 5 Successful 13 | . 8 5 Failed 11 | . 11 . Catastrophic 1 | . 1 . Database Lockouts . | . . . Manual 17 | . 17 . Terminals 16 | . 16 . Fabricators . | . . . Repair Stations . | . . . Recycling Units 3 | . 3 . Scanalyzers . | . . . Garrison Access . | . . . Terminal Hacks 7 | . 2 5 Record 5 | . . 5 Terminal Index 1 | . 1 . Hauler Manifests 1 | . 1 . Fabricator Hacks . | . . . Repair Station Hacks . | . . . Recycling Unit Hacks 1 | . 1 . Retrieve Components 1 | . 1 . Scanalyzer . | . . . Garrison Access Hacks . | . . . Unauthorized Hacks 5 | . 5 . Terminals 4 | . 4 . Skim 4 | . 4 . Fabricators . | . . . Repair Stations . | . . . Recycling Units 1 | . 1 . Tunnel 1 | . 1 . Scanalyzers . | . . . Garrison Access . | . . . Data Cores Recovered . | . . . Used . | . . . Hacking Detections 7 | . 7 . Full Trace Events . | . . . Feedback Events . | . . . Feedback Blocked . | . . . Robot Schematics Acquired . | . . . Robots Built . | . . . Authchips . | . . . Time . | . . . Total Robot Build Rating . | . . . Part Schematics Acquired . | . . . Parts Built . | . . . Authchips . | . . . Time . | . . . Total Part Build Rating . | . . . Part Studies Acquired . | . . . Parts Repaired . | . . . Time . | . . . Parts Recycled . | . . . Recycled Matter . | . . . Retrieved Matter . | . . . Retrieved Components 3 | . 3 . Parts Scanalyzed . | . . . Part Schematics Acquired . | . . . Parts Damaged . | . . . Bothacking | -11 -10 -10 ------------ Run | Yrd Mat Sub Used RIF Installer . | . . . Robots Hacked . | . . . Non-combat . | . . . Combat . | . . . Robot Hacks Applied . | . . . Relay Couplers Released . | . . . Fabnet Peak Effective % . | . . . Robots Rewired . | . . . Allies Hacked . | . . . Hacks Repelled . | . . . Allies | -11 -10 -10 -------- Run | Yrd Mat Sub Total Allies . | . . . Largest Group . | . . . Highest-Rated Group . | . . . Highest-Rated Ally . | . . . Total Orders . | . . . Ally Attacks . | . . . Total Damage . | . . . Kills . | . . . Allies Corrupted . | . . . Allies Melted . | . . . Intel | -11 -10 -10 ------- Run | Yrd Mat Sub Active Infowar (turns) 2153 | 11 238 1904 Seismic 2153 | 11 238 1904 Robot Analysis Total . | . . . Derelict Logs Recovered 1 | . . 1 Drone Launches . | . . . Drone Recoveries . | . . . Exploration | -11 -10 -10 ------------- Run | Yrd Mat Sub Turns Passed 4727 | 100 1175 3452 Spaces Moved 2171 | 43 461 1667 Core 2 | 2 . . Treads 943 | 41 461 441 Legs . | . . . Wheels 1226 | . . 1226 Hover . | . . . Flight . | . . . Fastest Speed 50 | 50 160 117 Average Speed 175 | 154 223 162 Slowest Speed 240 | 160 240 240 Overloaded Moves . | . . . Propulsion Burnouts . | . . . Robots Hopped . | . . . Potential Cave-ins . | . . . Cave-ins Triggered . | . . . Exploration Rate (%) 58 | 5 86 83 Regions Visited 2 Branch Regions 1 Pre-discovered Areas 2 | . 1 1 Known Exits Taken . | . . . Unknown Exits Taken 2 | 1 1 . Scrap Searched 6 | . . 6 Spaces Dug 9 | . 9 . Terrain Destroyed 28 | . 9 19 Melee . | . . . Projectile . | . . . AOE 28 | . 9 19 Terrain Rammed . | . . . Walls Destroyed . | . . . Machines Disabled . | . . . Actions | -11 -10 -10 --------- Run | Yrd Mat Sub Total 2860 | 59 560 2241 Wait 462 | . 49 413 Move 2170 | 43 460 1667 Hop . | . . . Pick Up 41 | 2 12 27 Fast Attach 11 | 6 3 2 Attach 8 | . . 8 Detach 1 | . 1 . Swap 30 | . 3 27 Drop 19 | . 2 17 Fire 116 | 8 28 80 Melee . | . . . Ram . | . . . Kick . | . . . Crush 2 | . 2 . Escape Stasis . | . . . Rewire . | . . . Trap . | . . . Miscellaneous . | . . . Route ------- -11/Scrapyard -10/Materials (discovered 5 exits: [*Mat x3] / [*Min] / *Sub) -10/Subcaves (discovered 3 exits: [*Mat x2] / [*Rec]) History --------- Turn | Location | Event 13 | -11/Scrapyard | Discovered new exit (range 15) 101 | -11/Scrapyard | Entered Materials 240 | -10/Materials | Discovered new exit (range 8) 318 | -10/Materials | Build established: Mutant 464 | -10/Materials | Discovered new exit (range 15) 701 | -10/Materials | Discovered new exit (range 16) 1004 | -10/Materials | Discovered new exit (range 11) 1223 | -10/Materials | Discovered new exit (range 7) 1276 | -10/Materials | Entered Subcaves 1325 | -10/Subcaves | A swath of the cavern ceiling suddenly collapsed 1546 | -10/Subcaves | Discovered new exit (range 13) 1837 | -10/Subcaves | Discovered new exit (range 11) 2028 | -10/Subcaves | Shifting Twisted Machinery released Sub. Machine Gun 2120 | -10/Subcaves | Shifting Twisted Machinery released Barrage Gun 2540 | -10/Subcaves | Ambushed by Subdwellers from Twisted Machinery 2606 | -10/Subcaves | Lost 4 parts (2n1u1w) 2783 | -10/Subcaves | Shifting Twisted Machinery released Sub. Power Source 2792 | -10/Subcaves | Shifting Twisted Machinery released Sub. Laser 2874 | -10/Subcaves | Learned Materials emergency access door positions 3044 | -10/Subcaves | Core integrity fell below 50% 3059 | -10/Subcaves | Shifting Twisted Machinery released Spk. Treads 3416 | -10/Subcaves | Visited Clippyterm 3421 | -10/Subcaves | Learned location of Deep Caves (-7) 3421 | -10/Subcaves | Learned Factory garrison access intel 3435 | -10/Subcaves | Discovered new exit (range 15) 3800 | -10/Subcaves | Core integrity fell below 20% 4109 | -10/Subcaves | Disturbed a concealed Subdweller 4692 | -10/Subcaves | Visited 4L-MR0's lab 4728 | -10/Subcaves | Destroyed by AU-8XM(R) with Subdweller Laser Last Messages --------------- 04124_ E0-2JI(R) destroyed. 04124_ Sub. Machine Gun shoots sparks and powers down. 04129_ Acquired 10 matter. 04132_ Dropped Spk. Treads. 04133_ Acquired 10 matter. 04243_ Triggered Shrapnel Trap. 04243_ An expanding cloud of shrapnel blasts out in all directions. 04243_ Seismic Detector destroyed. 04681_ Acquired 15 matter. 04682_ Searching scrap... 04682_ Found Mak. Thermal Plating. 04682_ Found 46 Matter. 04695_ Acquired 4 matter. 04709_ Ion Engine destroyed. 04715_ Dropped Scrap Shield. 04716_ Dropped Hcp. Storage Unit. 04716_ Acquired Scrap Shield. 04722_ Sub. Monowheel destroyed. 04726_ Critical hit (Destroy). 04728_ Scrap Shield destroyed. Map ----- +----------------------------------------------------+ | ???????????????????????????????????????????? | | ???????????????????????????????????????????? | | ???????????????????????????????????????????? | | ???????????????????????????????????????????? | | ???????????????????????????????????????????? | | ???????????????????????????????????????????? | | ???????????????????????????????????????????? | | ???????????????????????????????????????????? | | ???????????????????????????????????????????? | | ???????????????????????????????????????????? | | ???????????????????????????????????????????? | | ???????????????????# ??????????????????????? | | ?????????????????## ??????????????????????? | | ????????????????? ??????????????????????? | | ????????????????? ??????????????????????? | | ????????????????? ???????????????????????? | | ????????????????? ???????????????????????? | | ?????????###????? #???????????????????????? | | ?????##???$"###?? #???????????????????????? | | ????? !???# ""?## #???????????????????????? | | ?????""##?# "?# #??????##???????????????? | | ?????# ##" ###" #????? ##??????????????? | | ?????" #?# #"" #?????? #??????????????? | | ????#"" #?# #????? #??????????????? | | ?????"X #?# ###### #???????????????? | | ?????"" #?# #" #@!R=] #????????????????? | | ?????? #### ## ##RR]| ##???????#????????? | | ??????? ##& & # ##|![ #??????## ????????? | | ???????#/##&%&"## # =####?????# #???????? | | ???????# ##%!&"## ####?????# ???????? | | ???????# ! "### #??#### ???????? | | ???????#" "" ### ##??# ???????? | | ???????#######?### ##???# ##?????? | | ???????????????### #?##### ###???? | | ???????????????# ## ## ###?? | | ???????????????## # ### | | ???????????????## | | ??????????????## | | ??????????????# ### # # #?# | | ??????????????#### #?########## | | ?????????????????### ##?# ## # # # | | ????????????????### #### | | ????????????????# | | ??????????????# ## #### # | | ??????????????# ##??### | | ??????????????## ### #?????# | | ???????????????### ### #?????# # | | ?????????????????### #?# #????# ## | | ???????????????????# #?## #????# ## | | ??????????????????? #?? ##????## ## | +----------------------------------------------------+ Best States ------------- Heat Dissipation 25 Energy Generation 10 Energy Capacity 250 Matter Stores 300 Matter Capacity 300 Sight Range 16 Terrain Scan Density 10 Armor Coverage 800 Evasion (%) 40 Recoil Reduction 2 Item Schematics ----------------- None Robot Schematics ------------------ None Fabricated ------------ Nothing Repaired ---------- Nothing Studied --------- None Alien Tech Used ----------------- None Achievements -------------- None Challenges ------------ None Game ------ Seed ShieldSalvageRailgun Manual? 0 Play Time 00:26:06 Cumulative 1017.4 hours Start 2025.11.11 @ 11:11:12 End 2025.11.11 @ 11:29:52 Sessions 1 Manual Loads 0 Difficulty Rogue Special Mode None Game No. 316 Rogue 314 Adventurer 2 Explorer 0 Win Type - Total 72 Types 20/17/16/1/1/1/12/1/1/2 Lore% 97 Gallery% 95 Achievement% 82 Wizard Run 0 Options --------- Layout 0 ASCII 0 Keyboard 1 Movement Numpad Keybinds 0 Fullscreen 1 Font 24/Smallcaps Map View 76x50 Zoom Use 0% Tactical HUD 1 Map Filters NONE Filters NONE Steam 1 RUN: fc2f7d43-cd8d-405d-b7af-5df549408495